bitfinex-derivatives/quotes_BTCF0:USTF0_20250905
["timestamp","ask_amount","ask_price","bid_price","bid_amount"]
[1757075964279,0.8096236,112560.0,112550.0,0.3854507]
[1757075964480,1.1142736,112560.0,112540.0,1.70882]
[1757075964681,0.8642736,112560.0,112550.0,0.3854507]
[1757075964876,1.18867658,112560.0,112550.0,0.3854507]
[1757075965076,1.18867658,112560.0,112540.0,1.7956589]
[1757075965375,0.8096236,112560.0,112550.0,0.3864507]
[1757075965580,0.36,112560.0,112550.0,0.8898922]
[1757075965781,0.36,112560.0,112550.0,0.8888922]
[1757075966080,0.362,112560.0,112550.0,0.3854507]
[1757075966381,1.35185298,112560.0,112540.0,1.34362]
[1757075966571,1.10385298,112560.0,112550.0,0.3854507]
[1757075966768,0.05465,112550.0,112540.0,0.0001]
[1757075967080,1.06985298,112550.0,112540.0,0.0001]
[1757075967283,1.31985298,112550.0,112540.0,0.0001]
[1757075968076,0.05365,112530.0,112500.0,3.49040677]
[1757075968277,1.04885298,112530.0,112520.0,0.3854507]
[1757075968678,1.04885298,112530.0,112510.0,0.0888622]
[1757075968881,0.72445,112530.0,112520.0,0.3854507]
[1757075969182,1.04885298,112530.0,112520.0,0.3854507]
[1757075969381,0.68905298,112530.0,112520.0,0.4743059]
[1757075969583,0.311,112530.0,112520.0,0.8351059]
[1757075969784,0.311,112530.0,112520.0,0.7462507]
[1757075970079,0.69005298,112530.0,112520.0,0.7462507]
[1757075970279,0.63540298,112530.0,112520.0,0.4743059]
[1757075970488,0.241,112530.0,112520.0,2.4797559]
[1757075970777,0.002,112550.0,112540.0,0.0888394]
[1757075971079,0.352,112550.0,112540.0,0.3854507]
[1757075971273,0.05465,112560.0,112540.0,2.3366507]
[1757075971470,0.38465,112560.0,112550.0,0.3608]
[1757075971674,0.38465,112560.0,112550.0,0.8350823]
[1757075972077,0.74545,112560.0,112550.0,0.3854507]
[1757075972581,0.332,112560.0,112550.0,0.8350823]
[1757075972783,0.332,112560.0,112550.0,0.4742823]
[1757075973179,0.4208237,112560.0,112550.0,0.3854507]
[1757075973380,0.79987668,112560.0,112550.0,1.7242507]
[1757075973686,0.38665,112560.0,112550.0,1.8130823]
[1757075973887,0.332,112560.0,112550.0,2.1738823]
[1757075974077,0.02072348,112570.0,112560.0,0.0888237]
[1757075974386,0.36072348,112570.0,112560.0,0.4742744]
[1757075974684,0.41537348,112570.0,112560.0,0.4742744]
[1757075974878,0.41537348,112570.0,112560.0,1.8120344]
[1757075975074,0.77617348,112570.0,112560.0,1.7232107]
[1757075975281,0.77617348,112570.0,112560.0,1.7242107]
[1757075975477,0.41537348,112570.0,112560.0,1.7242107]
[1757075975674,0.36072348,112570.0,112560.0,7.44124738]
[1757075975878,0.34072348,112570.0,112560.0,7.4231944]
[1757075976084,0.05072348,112570.0,112560.0,7.4231944]
[1757075976279,0.02072348,112570.0,112560.0,7.4231944]
[1757075976482,0.29072348,112570.0,112560.0,7.4231944]
[1757075976684,0.34072348,112570.0,112560.0,5.7472507]
[1757075976882,0.34072348,112570.0,112560.0,6.7234507]
[1757075977184,0.34072348,112570.0,112560.0,7.0842507]
[1757075977377,0.02072348,112570.0,112560.0,7.1730744]
[1757075977581,0.02172348,112570.0,112560.0,7.1720744]
[1757075977779,0.36272348,112570.0,112560.0,7.1720744]
[1757075978086,0.04172348,112570.0,112560.0,7.1720744]
[1757075978288,0.02172348,112570.0,112560.0,7.1730744]
[1757075978483,0.04172348,112570.0,112560.0,7.4230744]
[1757075978679,0.04172348,112570.0,112560.0,7.4768844]
[1757075978875,0.04172348,112570.0,112560.0,7.74557789]
[1757075979082,0.01920348,112570.0,112560.0,7.74557789]
[1757075979282,0.01920348,112570.0,112560.0,7.49557789]
[1757075979478,0.43573828,112610.0,112590.0,0.0888]
[1757075979683,0.68108828,112610.0,112600.0,1.7202107]
[1757075979879,0.32028828,112610.0,112600.0,2.1698028]
[1757075980188,0.08028828,112610.0,112600.0,2.2236128]
[1757075980384,0.33028828,112610.0,112600.0,0.7462507]
[1757075980590,0.02028828,112610.0,112600.0,1.7191307]
[1757075980781,0.02528828,112610.0,112600.0,2.0809307]
[1757075980991,0.36528828,112610.0,112600.0,1.7198107]
[1757075981182,0.36528828,112610.0,112600.0,2.0806107]
[1757075981386,0.36528828,112610.0,112600.0,2.0805707]
[1757075981581,0.02928828,112610.0,112600.0,0.8360428]
[1757075981788,0.08428828,112610.0,112600.0,2.1678028]
[1757075981990,0.37428828,112610.0,112600.0,2.0800107]
[1757075982190,0.09428828,112610.0,112600.0,2.1688028]
[1757075982489,0.32028828,112610.0,112600.0,2.1688028]
[1757075982690,0.32128828,112610.0,112600.0,2.1688028]
[1757075982994,0.31128828,112610.0,112600.0,2.1679628]
[1757075983788,0.37128828,112610.0,112600.0,2.1679628]
[1757075983992,0.38128828,112610.0,112600.0,2.1669628]
[1757075984186,0.02128828,112610.0,112600.0,2.1669628]
[1757075984488,0.37128828,112610.0,112600.0,2.1669628]
[1757075984889,0.08128828,112610.0,112600.0,2.54091861]
[1757075985092,0.02128828,112610.0,112600.0,2.54091861]
[1757075985889,0.02128828,112610.0,112600.0,0.95899861]
[1757075986184,0.29128828,112610.0,112600.0,2.19984651]
[1757075986390,0.001,112610.0,112600.0,0.90518861]
[1757075986586,0.251,112610.0,112600.0,2.23422861]
[1757075986790,0.001,112610.0,112600.0,2.23422861]
[1757075987290,0.291,112610.0,112600.0,2.23422861]
[1757075987588,0.001,112610.0,112600.0,2.23422861]
[1757075987796,0.001,112610.0,112600.0,2.53797861]
[1757075988289,0.001,112610.0,112600.0,2.8066721]
[1757075988497,0.0001,112620.0,112610.0,0.1165343]
[1757075988688,0.0001,112630.0,112620.0,0.1184664]
[1757075988991,0.0001,112640.0,112630.0,0.0887685]
[1757075989185,0.06,112640.0,112630.0,0.4495685]
[1757075989390,0.34,112640.0,112630.0,0.3608]
[1757075989689,0.41272,112650.0,112630.0,0.8350192]
[1757075989885,0.74272,112650.0,112640.0,1.7122907]
[1757075990090,0.74262,112650.0,112640.0,1.7122907]
[1757075990294,0.0887606,112640.0,112620.0,0.3608]
[1757075990491,0.4606806,112640.0,112630.0,1.7115307]
[1757075990684,0.4605806,112640.0,112630.0,1.7115307]
[1757075990885,0.7105806,112640.0,112630.0,1.32608]
[1757075991593,0.7145806,112640.0,112630.0,1.32608]
[1757075992090,0.7105806,112640.0,112630.0,1.32608]
[1757075992296,0.0887685,112630.0,112610.0,0.4495842]
[1757075992497,0.3988685,112630.0,112620.0,1.32444]
[1757075992692,0.36182,112630.0,112620.0,1.4130564]
[1757075992999,0.03,112630.0,112620.0,1.7985071]
[1757075993292,0.01,112630.0,112620.0,1.8276064]
[1757075993499,0.35,112630.0,112620.0,1.8276064]
[1757075993797,0.0898606,112640.0,112620.0,2.2130571]
[1757075993985,0.4198606,112640.0,112630.0,0.3854507]
[1757075994186,0.331,112640.0,112630.0,0.4742192]
[1757075994387,0.001,112640.0,112630.0,0.8887692]
[1757075994587,0.15,112640.0,112630.0,0.8887692]
[1757075994784,0.4496528,112650.0,112630.0,0.8887692]
[1757075994984,0.6509,112650.0,112640.0,1.4114006]
[1757075995189,0.7395527,112650.0,112640.0,0.3854507]
[1757075995398,0.0887611,112640.0,112620.0,0.5033233]
[1757075995586,0.8096611,112640.0,112630.0,1.7074907]
[1757075995793,0.8095611,112640.0,112630.0,1.7074907]
[1757075996003,0.36,112640.0,112630.0,2.2104489]
[1757075996194,0.12,112640.0,112630.0,2.2104489]
[1757075996497,0.112,112640.0,112630.0,3.0704489]
[1757075996696,0.41262,112700.0,112680.0,0.0887286]
[1757075996896,0.71262,112700.0,112680.0,0.8349793]
[1757075997097,0.801333,112700.0,112690.0,1.32084]
[1757075997288,0.3,112700.0,112680.0,0.4495252]
[1757075997492,0.35182,112700.0,112690.0,1.7059707]
[1757075997693,0.35182,112700.0,112690.0,1.7946915]
[1757075997894,0.35182,112700.0,112690.0,1.4089608]
[1757075998196,0.35482,112700.0,112690.0,1.4089608]
[1757075998402,0.35482,112700.0,112690.0,1.68104]
[1757075998603,0.35182,112700.0,112690.0,1.68052]
[1757075998799,0.304,112700.0,112690.0,2.67338499]
[1757075999495,0.304,112700.0,112690.0,2.70025499]
[1757075999690,0.304,112700.0,112690.0,2.0649707]
[1757075999891,0.304,112700.0,112690.0,0.7462507]
[1757076000288,0.35582,112700.0,112690.0,1.7922515]
[1757076000594,0.304,112700.0,112690.0,1.7922515]
[1757076000800,0.07229252,112740.0,112730.0,0.0886898]
[1757076001002,0.06,112740.0,112730.0,1.7672098]
[1757076001198,0.41281,112760.0,112750.0,0.088674]
[1757076001199,0.05201,112760.0,112750.0,0.088674]
[1757076001507,0.28826075,112760.0,112750.0,2.78189819]
[1757076001797,0.28826075,112760.0,112750.0,1.51804016]
[1757076002002,0.28826075,112760.0,112750.0,2.83476016]
[1757076002498,0.29226075,112760.0,112750.0,2.83476016]
[1757076002900,0.29226075,112760.0,112750.0,1.17936616]
[1757076003207,0.54226075,112760.0,112750.0,1.31572]
[1757076003397,0.29226075,112760.0,112750.0,1.31572]
[1757076003595,0.29226075,112760.0,112730.0,0.3608]
[1757076003596,0.0886748,112750.0,112730.0,0.3608]
[1757076003798,0.7994748,112750.0,112740.0,1.29104]
[1757076003991,0.7994748,112750.0,112730.0,0.3854507]
[1757076004205,0.7994748,112750.0,112740.0,1.31504]
[1757076004403,0.7108,112750.0,112740.0,1.31504]
[1757076004699,0.24,112750.0,112730.0,0.4494864]
[1757076004904,0.6008,112750.0,112740.0,1.6997707]
[1757076005103,0.24,112750.0,112740.0,2.1492534]
[1757076005296,0.24,112750.0,112740.0,1.4030027]
[1757076005492,0.24,112750.0,112730.0,0.4524865]
[1757076005696,0.05182,112740.0,112730.0,0.003]
[1757076005896,0.28782,112740.0,112730.0,1.3132]
[1757076006201,0.05182,112720.0,112710.0,1.71516]
[1757076006502,0.39182,112720.0,112710.0,3.863197]
[1757076006698,0.05182,112720.0,112710.0,3.863197]
[1757076006900,0.21182,112720.0,112710.0,3.7744907]
[1757076007098,0.40182,112720.0,112710.0,3.863197]
[1757076007297,0.35182,112720.0,112710.0,3.863197]
[1757076007603,0.41262,112730.0,112720.0,0.0886984]
[1757076007801,0.62262,112730.0,112720.0,0.4741491]
[1757076007996,0.26082,112730.0,112720.0,0.3854507]
[1757076008804,0.29182,112730.0,112710.0,3.4777391]
[1757076009011,0.65262,112730.0,112720.0,0.3854507]
[1757076009209,0.65662,112730.0,112710.0,2.4614107]
[1757076009404,0.40821199,112720.0,112710.0,0.3608]
[1757076009600,0.35082,112720.0,112710.0,0.3608]
[1757076009807,0.60082,112720.0,112710.0,0.3608]
[1757076010403,0.60082,112720.0,112710.0,0.4495064]
[1757076010604,0.41262,112730.0,112710.0,0.8349571]
[1757076010808,0.8513107,112730.0,112720.0,1.30928]
[1757076011106,0.76262,112730.0,112720.0,1.30928]
[1757076011507,0.8513107,112730.0,112720.0,1.30928]
[1757076011903,0.76362,112730.0,112720.0,1.3979785]
[1757076012109,0.76862,112730.0,112720.0,1.3979785]
[1757076012305,0.8573107,112730.0,112710.0,0.0887017]
[1757076012501,0.05182,112720.0,112710.0,0.4741524]
[1757076012708,0.41862,112730.0,112720.0,0.0886985]
[1757076012903,0.05782,112730.0,112720.0,0.8349492]
[1757076013116,0.066,112730.0,112720.0,0.8349492]
[1757076013300,0.346,112730.0,112720.0,0.4741493]
[1757076013499,0.066,112730.0,112720.0,0.8349493]
[1757076013712,0.351,112730.0,112720.0,0.8349493]
[1757076013912,0.001,112730.0,112720.0,0.4741493]
[1757076014210,0.061,112730.0,112720.0,0.3854507]
[1757076014408,0.4455107,112730.0,112720.0,1.6922907]
[1757076014614,0.05182,112720.0,112710.0,0.4495065]
[1757076014817,0.39182,112720.0,112710.0,1.7555465]
[1757076015112,0.05182,112720.0,112710.0,2.1409972]
[1757076015313,0.40182,112720.0,112710.0,0.7462507]
[1757076015509,0.05182,112720.0,112710.0,0.7462507]
[1757076015711,0.05182,112720.0,112710.0,1.6906107]
[1757076015712,0.38182,112720.0,112710.0,1.6906107]
[1757076016115,0.8313186,112720.0,112710.0,1.6906107]
[1757076016417,0.38182,112720.0,112710.0,2.1401172]
[1757076016617,0.38182,112720.0,112710.0,0.8349572]
[1757076016818,0.4705186,112720.0,112710.0,2.0506507]
[1757076017213,0.05258,112710.0,112700.0,0.0887143]
[1757076017427,0.05258,112710.0,112700.0,1.7533943]
[1757076017717,0.05158,112710.0,112700.0,2.138845]
[1757076018118,0.23158,112710.0,112700.0,2.138845]
[1757076018319,0.20158,112710.0,112700.0,2.1388451]
[1757076018522,0.13158,112710.0,112700.0,2.1388451]
[1757076018722,0.05158,112710.0,112700.0,2.1388451]
[1757076018929,0.37158,112710.0,112700.0,2.1388451]
[1757076019128,0.20758,112710.0,112700.0,1.7790451]
[1757076019434,0.36758,112710.0,112700.0,1.7790451]
[1757076019724,0.36758,112710.0,112700.0,2.1408451]
[1757076019725,0.05758,112710.0,112700.0,2.1408451]
[1757076020228,0.006,112710.0,112700.0,2.3908451]
[1757076020630,0.006,112710.0,112700.0,2.9508451]
[1757076020825,0.41338,112750.0,112700.0,2.9508451]
[1757076020826,0.41338,112750.0,112730.0,0.0886907]
[1757076021127,0.02042677,112760.0,112750.0,0.088675]
[1757076021431,0.02042677,112760.0,112750.0,0.9949257]
[1757076021623,0.05258,112780.0,112770.0,0.0886593]
[1757076021828,0.39258,112780.0,112770.0,0.3854507]
[1757076022129,0.39258,112780.0,112760.0,0.0886671]
[1757076022130,0.05258,112770.0,112760.0,0.0886671]
[1757076022330,0.35258,112770.0,112760.0,1.6853707]
[1757076022522,0.35258,112770.0,112760.0,1.7740378]
[1757076022720,0.05258,112760.0,112750.0,1.37172242]
[1757076022920,0.72338,112760.0,112750.0,1.37156242]
[1757076023120,0.36258,112760.0,112750.0,1.46023742]
[1757076023326,0.05,112760.0,112750.0,2.20648812]
[1757076023625,0.04,112760.0,112750.0,2.20648812]
[1757076023924,0.05258,112770.0,112750.0,2.20648312]
[1757076024129,0.38258,112770.0,112760.0,0.4741178]
[1757076024424,0.38658,112770.0,112760.0,0.4741178]
[1757076024623,0.38658,112770.0,112760.0,0.0886671]
[1757076024819,0.38258,112770.0,112760.0,0.7462507]
[1757076025025,0.38258,112770.0,112760.0,1.7714778]
[1757076025227,0.38258,112770.0,112760.0,0.8349178]
[1757076025428,0.334,112770.0,112760.0,2.1322778]
[1757076025727,0.334,112770.0,112760.0,2.1319578]
[1757076026425,0.114,112770.0,112760.0,2.1319578]
[1757076027534,0.116,112770.0,112760.0,2.3819578]
[1757076028230,0.115,112770.0,112760.0,2.65065129]
[1757076028432,0.00355745,112770.0,112760.0,3.26065129]
[1757076028627,0.0001,112800.0,112790.0,0.0886436]
[1757076028833,0.0001,112810.0,112800.0,0.0886357]
[1757076029038,0.41348,112820.0,112810.0,0.0886278]
[1757076029336,0.75338,112820.0,112810.0,1.3825478]
[1757076029523,0.75338,112820.0,112800.0,0.4494315]
[1757076029728,0.75348,112820.0,112810.0,1.67517325]
[1757076030034,0.39258,112820.0,112810.0,1.67517325]
[1757076030234,0.75338,112820.0,112810.0,1.29284]
[1757076030428,0.05258,112810.0,112790.0,0.4494398]
[1757076030637,0.76348,112810.0,112800.0,1.29564]
[1757076030830,0.40258,112810.0,112800.0,0.0916357]
[1757076031039,0.40058,112810.0,112800.0,1.7419157]
[1757076031333,0.40058,112810.0,112800.0,1.65328]
[1757076031536,1.1000079,112810.0,112800.0,1.29164]
[1757076031741,0.05258,112800.0,112790.0,0.3638]
[1757076031938,0.4612157,112800.0,112790.0,0.003]
[1757076032235,0.05058,112790.0,112780.0,2.07492]
[1757076032436,0.40058,112790.0,112780.0,3.36576]
[1757076032637,0.05258,112770.0,112760.0,0.3608]
[1757076032834,0.3212393,112770.0,112760.0,1.65148]
[1757076033137,0.9320393,112770.0,112750.0,0.52179632]
[1757076033331,0.6820393,112770.0,112760.0,1.67225325]
[1757076033638,0.23258,112770.0,112760.0,1.76092045]
[1757076033938,0.48258,112770.0,112760.0,1.29036]
[1757076034238,0.48258,112770.0,112760.0,1.3790273]
[1757076034434,0.48258,112770.0,112760.0,1.3783073]
[1757076034834,0.23258,112770.0,112760.0,1.76020055]
[1757076035034,0.23458,112770.0,112760.0,1.76020055]
[1757076035235,0.23458,112770.0,112760.0,2.12100055]
[1757076035737,0.182,112770.0,112760.0,2.12100055]
[1757076035939,0.002,112770.0,112760.0,2.12100055]
[1757076036233,0.002,112770.0,112760.0,2.37100055]
[1757076036733,0.002,112770.0,112760.0,2.11884055]
[1757076036930,0.30458,112770.0,112760.0,2.11884055]
[1757076037130,0.05458,112770.0,112760.0,0.38189325]
[1757076037338,0.05458,112770.0,112760.0,2.11848055]
[1757076037541,0.20258,112770.0,112760.0,2.11848055]
[1757076037742,0.39258,112770.0,112760.0,2.11848055]
[1757076037936,0.39258,112770.0,112760.0,1.75724055]
[1757076038332,0.4822394,112770.0,112760.0,0.38189325]
[1757076038533,0.39358,112770.0,112760.0,1.66797325]
[1757076038737,0.64258,112770.0,112760.0,1.3747473]
[1757076038935,0.7322395,112770.0,112760.0,1.28568]
[1757076039235,0.1412473,112760.0,112750.0,0.07232242]
[1757076039536,0.05258,112750.0,112740.0,2.0746]
[1757076039838,0.1412643,112740.0,112720.0,0.3608]
[1757076040036,0.35258,112740.0,112730.0,1.66625325]
[1757076040338,0.1412945,112700.0,112690.0,0.1001]
[1757076040533,0.1413067,112690.0,112670.0,1.64488]
[1757076040730,0.72338,112690.0,112680.0,0.38189325]
[1757076041042,0.31,112690.0,112680.0,0.47062345]
[1757076041240,0.308,112690.0,112680.0,1.40501707]
[1757076041536,0.308,112690.0,112680.0,2.4373374]
[1757076042040,0.001,112690.0,112680.0,2.76093102]
[1757076042938,0.41338,112720.0,112690.0,0.0887164]
[1757076043138,0.8320839,112720.0,112700.0,1.66397325]
[1757076043332,0.8320839,112720.0,112700.0,1.75268745]
[1757076043534,0.74338,112720.0,112700.0,2.11348745]
[1757076043732,0.74338,112720.0,112700.0,1.66397325]
[1757076043932,0.74338,112720.0,112700.0,2.11348685]
[1757076044938,0.38658,112720.0,112710.0,0.83139985]
[1757076045236,0.8320788,112720.0,112700.0,0.38189325]
[1757076045439,0.8350788,112720.0,112710.0,1.28028]
[1757076045634,1.15867242,112720.0,112710.0,1.28028]
[1757076045942,1.40567242,112720.0,112710.0,1.28028]
[1757076046238,1.32097362,112720.0,112710.0,1.28028]
[1757076046539,0.05246,112700.0,112690.0,0.0887179]
[1757076046735,0.41246,112700.0,112690.0,0.47061115]
[1757076046933,0.13246,112700.0,112690.0,1.74965115]
[1757076047330,0.39246,112700.0,112690.0,1.74917115]
[1757076047736,0.05246,112700.0,112690.0,1.74917115]
[1757076047937,0.36246,112700.0,112690.0,2.10997115]
[1757076048137,0.40246,112700.0,112690.0,1.74917115]
[1757076048338,0.05246,112700.0,112690.0,2.10997115]
[1757076048539,0.05446,112700.0,112690.0,2.10997115]
[1757076048841,0.002,112700.0,112690.0,2.68356477]
[1757076049330,0.002,112700.0,112690.0,4.71780477]
[1757076049535,0.003,112720.0,112690.0,4.71780867]
[1757076049734,0.11546,112720.0,112710.0,0.83140015]
[1757076050036,0.063,112720.0,112710.0,2.10800015]
[1757076050237,0.063,112720.0,112710.0,1.08140015]
[1757076050433,0.063,112720.0,112710.0,2.35756015]
[1757076050637,0.06,112720.0,112710.0,2.35756015]
[1757076051039,0.06,112720.0,112710.0,2.35744015]
[1757076051239,0.06,112720.0,112710.0,2.35680015]
[1757076051635,1.15555262,112720.0,112690.0,2.1637579]
[1757076051841,0.05246,112710.0,112700.0,1.27528]
[1757076052041,0.40246,112710.0,112700.0,1.3639947]
[1757076052442,0.40246,112710.0,112700.0,1.65621325]
[1757076052836,0.40246,112710.0,112700.0,0.0887147]
[1757076053037,0.40246,112710.0,112700.0,0.47060795]
[1757076053243,0.8519669,112710.0,112700.0,0.38189325]
[1757076053445,0.40246,112710.0,112700.0,0.38189325]
[1757076053835,0.76326,112710.0,112700.0,0.38189325]
[1757076054035,0.8519669,112710.0,112700.0,0.38189325]
[1757076054237,0.76326,112710.0,112700.0,0.38189325]
[1757076054446,0.40246,112710.0,112700.0,0.47060795]
[1757076054849,0.8529669,112710.0,112700.0,0.38189325]
[1757076055044,0.76426,112710.0,112700.0,0.38189325]
[1757076055242,0.1411747,112700.0,112690.0,0.002]
[1757076055441,0.1412062,112660.0,112650.0,0.0001]
[1757076055649,0.05246,112650.0,112640.0,0.73066748]
[1757076055947,0.05246,112650.0,112640.0,1.34357423]
[1757076055948,0.5012141,112650.0,112640.0,1.34357423]
[1757076056156,0.77326,112650.0,112640.0,1.2716]
[1757076056452,0.5020063,112660.0,112640.0,1.93029325]
[1757076056653,0.8320063,112660.0,112650.0,0.29789325]
[1757076057054,0.8320063,112660.0,112640.0,1.6324]
[1757076057247,0.8320063,112660.0,112650.0,0.29789325]
[1757076057454,0.1412141,112650.0,112640.0,1.2716]
[1757076057657,0.8420141,112650.0,112640.0,1.2716]
[1757076057947,0.39246,112650.0,112640.0,1.2716]
[1757076058153,0.39246,112650.0,112640.0,1.65825525]
[1757076058355,0.05246,112650.0,112640.0,1.65925525]
[1757076058551,0.14,112650.0,112640.0,1.65925525]
[1757076058754,0.5020105,112660.0,112640.0,2.01905525]
[1757076059053,0.5020105,112660.0,112650.0,0.38664725]
[1757076059054,0.71326,112660.0,112650.0,0.38664725]
[1757076059245,0.35246,112660.0,112650.0,0.38664725]
[1757076059441,0.141214,112650.0,112640.0,0.3618]
[1757076059658,0.812014,112650.0,112640.0,1.26984]
[1757076059954,0.451214,112650.0,112640.0,1.63892637]
[1757076060154,0.36246,112650.0,112640.0,2.08848827]
[1757076060353,0.41326,112670.0,112650.0,0.0887469]
[1757076060548,0.11,112670.0,112660.0,2.33894827]
[1757076060749,0.11,112670.0,112660.0,2.01535465]
[1757076061145,0.79479192,112670.0,112660.0,1.56533325]
[1757076061350,1.15559192,112670.0,112660.0,1.2672]
[1757076061556,1.0819983,112670.0,112660.0,1.2672]
[1757076061854,1.40559192,112670.0,112660.0,1.2672]
[1757076062149,1.40559192,112670.0,112660.0,1.2682]
[1757076062553,1.40559192,112670.0,112660.0,0.001]
[1757076062853,0.1412298,112630.0,112620.0,0.3609]
[1757076063155,0.1412298,112630.0,112610.0,2.1644656]
[1757076063156,0.05246,112620.0,112610.0,2.1644656]
[1757076063358,0.37246,112620.0,112610.0,3.4301456]
[1757076063553,0.41326,112630.0,112610.0,3.72803885]
[1757076063758,1.02685362,112630.0,112610.0,1.71488]
[1757076063957,0.68439362,112620.0,112590.0,0.4495968]
[1757076064256,1.02439362,112620.0,112600.0,0.29789325]
[1757076064451,0.3608,112610.0,112600.0,0.29789325]
[1757076064651,1.02439362,112610.0,112590.0,1.26456]
[1757076064847,0.3608,112600.0,112570.0,1.2642]
[1757076065051,1.03439362,112600.0,112580.0,0.74750265]
[1757076065254,0.35,112600.0,112580.0,0.74750265]
[1757076065550,0.346,112600.0,112590.0,0.29789325]
[1757076065955,0.346,112600.0,112580.0,0.4496094]
[1757076066158,0.19,112600.0,112590.0,2.01089425]
[1757076066355,0.02,112600.0,112590.0,2.01089425]
[1757076066556,0.34,112600.0,112590.0,1.56129325]
[1757076067157,0.072,112600.0,112590.0,1.65009475]
[1757076067358,0.352,112600.0,112590.0,1.56129325]
[1757076067553,0.35,112600.0,112590.0,1.56129325]
[1757076067759,0.304,112600.0,112590.0,1.65109475]
[1757076068159,0.304,112600.0,112590.0,1.56229325]
[1757076069063,1.29085362,112600.0,112590.0,0.001]
[1757076069268,1.29085362,112600.0,112590.0,1.26312]
[1757076069467,0.35646,112600.0,112590.0,1.56101325]
[1757076069768,0.71726,112600.0,112590.0,1.55953325]
[1757076069961,0.71826,112600.0,112590.0,1.55953325]
[1757076070565,1.13064722,112600.0,112590.0,1.55953325]
[1757076070763,0.4462536,112600.0,112590.0,1.55953325]
[1757076071068,0.35746,112600.0,112590.0,1.92033325]
[1757076071370,0.305,112600.0,112590.0,2.00913475]
[1757076071558,0.305,112600.0,112590.0,1.92033325]
[1757076072163,0.235,112600.0,112590.0,2.25913475]
[1757076072368,0.235,112600.0,112590.0,2.58272837]
[1757076073170,0.005,112600.0,112590.0,2.58272837]
[1757076073562,0.4137936,112600.0,112590.0,0.65969325]
[1757076073768,0.4662536,112600.0,112590.0,1.91745325]
[1757076074266,0.37746,112600.0,112590.0,1.91745325]
[1757076074660,0.4662536,112600.0,112590.0,1.91745325]
[1757076074866,0.37746,112600.0,112590.0,2.00625475]
[1757076075169,0.4662536,112600.0,112590.0,1.91745325]
[1757076075370,0.37746,112600.0,112590.0,1.91745325]
[1757076075667,0.4662536,112600.0,112590.0,1.91709325]
[1757076075874,0.8270536,112600.0,112590.0,1.55457325]
[1757076076677,0.37746,112600.0,112590.0,1.61748]
[1757076077065,0.37746,112600.0,112590.0,1.25668]
[1757076077364,0.4662536,112600.0,112590.0,1.25668]
[1757076077561,0.4662536,112600.0,112590.0,0.3618]
[1757076077766,0.8270536,112600.0,112590.0,0.001]
[1757076077965,1.0770536,112600.0,112590.0,0.001]
[1757076078167,1.40064722,112600.0,112590.0,0.001]
[1757076078765,1.0770536,112600.0,112590.0,0.001]
[1757076079274,1.40064722,112600.0,112590.0,0.001]
[1757076079761,1.31185362,112600.0,112590.0,0.001]
[1757076079966,0.98826,112600.0,112590.0,0.001]
[1757076080162,0.73826,112600.0,112590.0,0.001]
[1757076080367,1.40064722,112600.0,112590.0,0.001]
[1757076080974,0.1409873,112570.0,112560.0,0.00886985]
[1757076081166,1.14538092,112570.0,112560.0,0.00017768]
[1757076081366,1.39538092,112570.0,112560.0,0.00017768]
[1757076081562,0.141003,112550.0,112540.0,0.0001]
[1757076081771,1.12539662,112550.0,112540.0,0.0001]
[1757076081976,0.8018023,112550.0,112540.0,0.0001]
[1757076082374,0.71297,112550.0,112540.0,0.0889402]
[1757076082562,0.8018023,112550.0,112540.0,0.0001]
[1757076083066,1.4096023,112550.0,112540.0,0.0001]
[1757076083373,1.73319592,112550.0,112540.0,0.0001]
[1757076083576,1.73319592,112550.0,112540.0,0.0011]
[1757076083577,1.64936362,112550.0,112540.0,0.0011]
[1757076083775,1.32377,112550.0,112540.0,0.0011]
[1757076084276,0.35217,112550.0,112540.0,0.38783375]
[1757076084579,0.35217,112550.0,112540.0,0.99863375]
[1757076084777,0.35417,112550.0,112540.0,0.63783375]
[1757076085173,0.35417,112550.0,112540.0,0.99863375]
[1757076085474,0.307,112550.0,112540.0,0.99863375]
[1757076086076,0.307,112550.0,112540.0,0.63783375]
[1757076086265,0.307,112550.0,112540.0,0.99863375]
[1757076086464,0.307,112550.0,112540.0,0.90979325]
[1757076086669,0.307,112550.0,112540.0,0.99863375]
[1757076087071,0.35917,112550.0,112540.0,0.99863375]
[1757076087270,0.35917,112550.0,112540.0,0.90979325]
[1757076087577,1.04356362,112550.0,112540.0,0.0011]
[1757076087978,1.29356362,112550.0,112540.0,0.0011]
[1757076088975,0.05217,112540.0,112510.0,3.41147766]
[1757076089276,0.05217,112540.0,112520.0,0.29789325]
[1757076089277,0.41297,112530.0,112520.0,0.29789325]
[1757076089472,0.72297,112530.0,112520.0,0.29789325]
[1757076089679,0.31,112530.0,112520.0,0.99754955]
[1757076090367,1.04656362,112530.0,112520.0,0.29789325]
[1757076090567,0.72297,112530.0,112520.0,0.29789325]
[1757076090772,0.36517,112530.0,112520.0,0.38774955]
[1757076090974,0.313,112530.0,112520.0,0.99854955]
[1757076091474,0.313,112530.0,112520.0,0.54889325]
[1757076091877,0.314,112530.0,112520.0,0.99854845]
[1757076092077,0.314,112530.0,112520.0,0.54889325]
[1757076092279,0.36617,112530.0,112520.0,0.54889325]
[1757076092474,0.77861152,112530.0,112520.0,0.29889325]
[1757076092877,0.8158179,112530.0,112520.0,0.29889325]
[1757076093084,1.14141152,112530.0,112520.0,0.29889325]
[1757076093382,1.39141152,112530.0,112520.0,0.29889325]
[1757076094375,1.0678179,112530.0,112520.0,0.29889325]
[1757076094576,1.39141152,112530.0,112520.0,0.29889325]
[1757076095083,1.39041152,112530.0,112520.0,0.29889325]
[1757076095285,1.39241152,112530.0,112520.0,0.29889325]
[1757076095985,1.39241152,112530.0,112520.0,0.27089325]
[1757076096884,1.0688179,112530.0,112520.0,0.27089325]
[1757076097079,1.39241152,112530.0,112520.0,0.27089325]
[1757076097291,1.0688179,112530.0,112520.0,0.27089325]
[1757076097588,0.8188179,112530.0,112520.0,0.27089325]
[1757076097886,1.14241152,112530.0,112520.0,0.27089325]
[1757076098086,1.39241152,112530.0,112520.0,0.27089325]
[1757076098584,0.05217,112520.0,112510.0,0.00017776]
[1757076098785,0.72297,112520.0,112510.0,0.00017776]